bitfinex/quotes_ETHUSD_20250730
["timestamp","ask_amount","ask_price","bid_price","bid_amount"]
[1753836188333,3.0,3768.0,3767.3,0.3383]
[1753836188704,3.0,3768.0,3767.4,0.4343]
[1753836189106,0.793,3768.6,3767.5,0.8272]
[1753836189309,3.0,3768.4,3767.6,0.7726]
[1753836189540,0.03282545,3768.3,3767.5,0.8272]
[1753836189859,0.03282545,3768.3,3767.2,0.7696]
[1753836189860,0.7913,3768.0,3767.2,0.7696]
[1753836190141,5.6314,3767.9,3767.1,0.04]
[1753836190347,4.676,3767.9,3767.2,0.4343]
[1753836190544,4.126,3767.8,3767.3,0.8306]
[1753836190834,3.0,3768.4,3767.4,0.7726]
[1753836190835,4.126,3767.7,3767.4,0.7726]
[1753836191094,4.126,3767.7,3767.3,0.8306]
[1753836191230,4.126,3767.7,3767.5,0.7726]
[1753836191544,4.126,3767.7,3767.6,1.5564]
[1753836194602,4.126,3767.7,3767.6,0.7726]
[1753836195206,4.126,3767.7,3767.6,1.5733]
[1753836195435,4.126,3767.7,3767.6,1.73063]
[1753836197408,4.126,3767.7,3767.6,1.86343]
[1753836200742,4.125,3769.1,3768.0,0.7716]
[1753836200942,4.125,3769.1,3768.2,0.7716]
[1753836201140,4.125,3769.1,3768.1,0.64256642]
[1753836201141,4.125,3769.1,3768.3,0.7726]
[1753836201440,4.125,3769.1,3768.4,1.2059]
[1753836201603,0.98822545,3769.0,3768.4,0.7716]
[1753836201805,4.125,3768.9,3768.4,0.7716]
[1753836202027,0.4984,3768.9,3768.4,0.7716]
[1753836202349,4.125,3768.8,3768.4,0.7716]
[1753836202548,4.6234,3768.8,3768.4,0.7716]
[1753836202709,4.125,3768.8,3768.4,0.7716]
[1753836203048,4.125,3768.8,3768.5,0.7726]
[1753836203206,4.125,3768.8,3768.6,0.92702]
[1753836203409,4.125,3768.8,3768.7,0.4343]
[1753836204136,4.125,3768.8,3768.6,0.15442]
[1753836204518,0.4984,3769.4,3768.6,0.15442]
[1753836204722,4.125,3769.3,3768.5,0.4343]
[1753836206846,5.0804,3769.3,3768.5,0.4343]
[1753836207046,4.7485,3769.2,3768.1,0.8064]
[1753836207444,0.9554,3769.2,3768.2,0.4343]
[1753836207656,5.0804,3769.1,3768.1,0.8064]
[1753836207821,0.8263,3768.9,3768.1,0.8064]
[1753836208213,0.9554,3768.8,3768.1,0.8064]
[1753836208412,0.9554,3768.7,3768.1,0.8064]
[1753836208623,0.47817,3768.7,3768.1,0.8064]
[1753836208839,0.9554,3768.6,3768.1,0.8064]
[1753836209146,5.0804,3768.5,3767.9,0.7503]
[1753836209347,0.9554,3768.4,3767.9,0.7503]
[1753836209537,0.9554,3768.3,3767.9,0.7503]
[1753836210023,0.4984,3768.2,3767.9,0.7503]
[1753836210350,0.9554,3768.2,3767.9,0.7503]
[1753836211326,0.1328,3768.3,3767.9,0.7503]
[1753836211549,0.9554,3768.1,3767.9,0.7503]
[1753836212153,0.4532,3768.0,3767.9,0.7503]
[1753836212534,0.457,3768.1,3767.9,0.7503]
[1753836213054,0.9102,3768.1,3767.9,0.7503]
[1753836213681,0.4532,3768.0,3767.7,0.1328]
[1753836213849,4.125,3767.9,3767.7,0.1328]
[1753836217154,0.1328,3768.3,3767.7,0.1328]
[1753836217355,4.124,3767.9,3767.8,1.2493]
[1753836217658,4.124,3767.9,3767.8,1.42134]
[1753836217845,4.124,3767.9,3767.8,1.55414]
[1753836220988,4.124,3767.9,3767.8,1.55414]
[1753836221330,0.002,3768.1,3767.8,1.89244]
[1753836221574,0.1328,3768.9,3768.4,0.1328]
[1753836221867,4.124,3768.8,3768.6,0.1328]
[1753836223751,6.378,3769.2,3768.6,0.2683]
[1753836223953,0.1328,3769.4,3768.7,0.7664]
[1753836224151,4.124,3769.3,3769.1,0.1328]
[1753836224363,4.124,3769.3,3768.8,1.2007]
[1753836224670,4.124,3769.3,3769.2,0.1328]
[1753836227570,4.124,3769.3,3769.2,0.9457]
[1753836227730,0.002,3769.7,3769.2,1.38]
[1753836227932,0.002,3769.7,3769.4,0.7556]
[1753836228142,0.002,3769.7,3769.5,0.02652871]
[1753836228470,0.002,3769.7,3769.6,1.30917393]
[1753836228776,0.04,3769.9,3769.6,4.86380135]
[1753836228983,4.123,3770.7,3770.0,0.778]
[1753836229160,4.123,3770.7,3769.7,0.7726]
[1753836229161,4.123,3770.7,3770.1,1.57712449]
[1753836229351,4.123,3770.7,3770.6,0.1328]
[1753836231076,4.123,3770.7,3770.6,0.9535]
[1753836232365,0.4932,3770.9,3770.6,1.2918]
[1753836232366,0.04,3770.9,3770.6,1.2918]
[1753836232568,0.04,3770.9,3770.7,0.02652027]
[1753836232769,0.04,3770.9,3770.8,1.26414218]
[1753836233078,0.002,3771.5,3771.2,0.758]
[1753836233283,0.002,3771.5,3771.4,0.8908]
[1753836233781,0.002,3771.5,3771.4,1.3251]
[1753836234075,0.002,3771.5,3771.4,0.8908]
[1753836234374,0.002,3771.5,3771.4,1.32331]
[1753836237544,0.4552,3771.5,3771.4,0.8908]
[1753836237750,0.002,3771.5,3771.4,0.8908]
[1753836241584,0.9354,3771.9,3771.5,2.65141005]
[1753836241585,0.042,3771.9,3771.5,2.65141005]
[1753836241778,0.042,3771.9,3771.6,1.62671394]
[1753836241986,0.042,3771.9,3771.7,0.4278124]
[1753836242497,0.002,3772.1,3771.7,3.4278124]
[1753836242658,0.002,3772.1,3771.8,0.4343]
[1753836243271,0.002,3772.1,3771.7,0.4278124]
[1753836243695,0.5007,3772.1,3771.7,0.4278124]
[1753836243880,0.5007,3772.1,3771.8,0.46897124]
[1753836245454,0.002,3772.1,3771.8,0.46897124]
[1753836245661,0.9499,3772.0,3771.6,0.8276]
[1753836245888,0.4987,3771.9,3771.3,0.7933]
[1753836246055,5.0689,3771.9,3771.3,3.7933]
[1753836246255,0.9499,3771.8,3771.3,3.7933]
[1753836246459,0.9499,3771.7,3771.2,4.28]
[1753836246671,0.9499,3771.6,3771.2,4.28]
[1753836247084,0.03282545,3771.8,3771.2,4.28]
[1753836247258,0.9499,3771.7,3771.2,4.28]
[1753836247479,4.119,3771.9,3771.2,4.28]
[1753836247480,0.9499,3771.6,3771.2,4.28]
[1753836247683,0.81542545,3771.5,3771.2,4.28]
[1753836248207,0.9499,3771.4,3771.2,4.28]
[1753836248518,0.9499,3771.3,3771.2,4.28]
[1753836251071,0.9499,3771.3,3770.7,0.8178]
[1753836251276,0.4987,3771.2,3770.8,0.38178]
[1753836251702,0.4512,3771.2,3771.1,0.1328]
[1753836252212,0.9499,3771.2,3771.1,0.1328]
[1753836252377,0.4987,3771.2,3771.1,0.1328]
[1753836253827,4.119,3771.4,3771.1,0.1328]
[1753836253971,4.119,3771.4,3771.2,0.7609]
[1753836254175,4.119,3771.4,3771.3,0.1328]
[1753836254930,4.6177,3771.4,3771.3,0.1328]
[1753836255108,5.8831,3771.4,3771.3,0.1328]
[1753836255425,6.60421,3771.4,3770.8,0.1328]
[1753836255714,0.9499,3771.3,3770.8,0.1328]
[1753836255916,0.4987,3771.2,3770.8,0.1328]
[1753836256124,0.9499,3771.2,3770.8,0.1328]
[1753836256619,5.066,3771.4,3770.8,0.1328]
[1753836256808,0.9499,3771.1,3770.8,0.1328]
[1753836257006,4.118,3771.0,3770.8,0.1328]
[1753836257515,0.9499,3770.9,3770.8,0.1328]
[1753836258104,4.118,3771.0,3770.8,0.1328]
[1753836259143,4.118,3771.2,3770.8,0.1328]
[1753836259326,4.118,3771.2,3770.6,0.4343]
[1753836259327,4.118,3771.2,3770.9,0.8115]
[1753836259488,4.118,3771.2,3771.1,0.1328]
[1753836259830,5.0679,3771.2,3771.1,0.1328]
[1753836261014,5.8766,3771.2,3770.8,0.1328]
[1753836261187,0.98272545,3771.1,3770.8,0.1328]
[1753836261605,0.9499,3771.0,3770.8,0.1328]
[1753836261928,4.118,3770.9,3770.8,0.1328]
[1753836262288,5.0679,3770.9,3770.8,0.1328]
[1753836263000,5.0679,3770.9,3770.4,0.1338]
[1753836263200,0.9499,3770.8,3770.4,0.1338]
[1753836263822,4.118,3770.9,3770.4,0.1338]
[1753836263823,0.9499,3770.7,3770.4,0.1338]
[1753836264024,4.118,3770.6,3770.4,0.1338]
[1753836264229,4.118,3770.6,3770.4,0.001]
[1753836264391,4.118,3770.6,3770.5,0.1328]
[1753836264595,5.0679,3770.6,3770.5,0.1328]
[1753836264899,4.6167,3770.6,3770.5,0.1328]
[1753836265596,5.0679,3770.6,3770.5,0.1328]
[1753836271270,5.0679,3770.6,3770.4,0.001]
[1753836271271,5.8463,3770.6,3770.4,0.001]
[1753836271555,0.9499,3770.5,3770.4,0.001]
[1753836271917,4.8964,3770.6,3770.4,0.001]
[1753836272119,0.9323,3770.5,3770.4,0.001]
[1753836278071,4.5981,3770.6,3770.4,0.001]
[1753836278273,0.4801,3770.5,3770.4,0.001]
[1753836278664,0.9323,3770.5,3770.4,0.001]
[1753836281682,0.4801,3770.5,3770.4,0.001]
[1753836281859,4.118,3770.6,3770.4,0.001]
[1753836282741,0.4801,3771.3,3770.4,0.001]
[1753836282979,4.117,3771.2,3770.5,0.5671]
[1753836283296,4.117,3771.2,3770.8,0.1328]
[1753836283883,4.5971,3771.2,3770.8,0.1328]
[1753836284242,0.4801,3771.1,3770.8,0.1328]
[1753836284442,4.116,3771.0,3770.8,0.1328]
[1753836284643,0.002,3772.1,3771.0,0.1328]
[1753836284644,0.6129,3771.6,3771.0,0.1328]
[1753836284958,4.116,3771.5,3771.1,0.1328]
[1753836285484,4.5961,3771.5,3771.1,0.1328]
[1753836285784,5.0483,3771.5,3771.1,0.1328]
[1753836285956,4.5682,3771.5,3771.1,0.1328]
[1753836286296,0.4801,3771.4,3771.1,0.1328]
[1753836286706,0.9323,3771.3,3770.4,0.7953]
[1753836286906,4.116,3771.2,3770.8,0.1328]
[1753836287101,0.03282545,3771.1,3770.8,0.1328]
[1753836287247,0.9323,3771.0,3770.8,0.1328]
[1753836287603,5.08112545,3770.9,3770.4,0.001]
[1753836287782,5.21392545,3770.9,3770.4,0.001]
[1753836287949,0.4801,3770.8,3770.4,0.001]
[1753836288146,0.9323,3770.8,3770.4,0.001]
[1753836288578,4.2488,3770.9,3770.4,0.001]
[1753836288816,0.9323,3770.7,3770.4,0.001]
[1753836289089,4.116,3770.6,3770.4,0.001]
[1753836289248,0.1328,3770.9,3770.4,0.001]
[1753836289455,4.116,3771.1,3770.5,1.3232]
[1753836289755,4.116,3771.0,3770.6,0.16625]
[1753836289978,0.4801,3771.1,3770.5,0.7561]
[1753836290150,4.116,3771.0,3770.9,0.1328]
[1753836290887,0.9323,3771.3,3770.9,0.1328]
[1753836291190,4.115,3771.0,3770.9,0.1328]
[1753836292995,4.065,3771.0,3770.9,0.1328]
[1753836293700,4.115,3771.1,3771.0,0.7598]
[1753836295900,0.812,3771.9,3771.0,1.5324]
[1753836295901,0.002,3771.9,3771.0,1.5324]
[1753836296070,4.115,3771.8,3771.1,0.46081746]
[1753836296402,4.115,3771.8,3771.2,0.86235166]
[1753836296590,4.115,3771.8,3771.7,0.1328]
[1753836296908,4.115,3771.8,3771.7,0.5671]
[1753836297201,4.115,3771.8,3771.7,1.7319]
[1753836297906,0.002,3772.1,3771.7,1.42011324]
[1753836298066,0.002,3772.1,3771.9,0.7921]
[1753836298269,0.002,3772.4,3772.2,0.55]
[1753836298502,0.002,3772.4,3772.3,0.13421]
[1753836298702,0.002,3772.4,3772.3,0.26701]
[1753836299783,0.4821,3772.4,3772.3,0.1328]
[1753836300170,0.002,3772.4,3772.3,0.1328]
[1753836300669,0.002,3772.4,3772.3,4.35510263]
[1753836300888,0.002,3772.5,3772.4,2.65083236]
[1753836301098,0.002,3772.5,3772.4,4.45319254]
[1753836303166,0.002,3772.7,3772.5,4.3182]
[1753836303373,0.042,3772.9,3772.8,2.65055131]
[1753836303630,0.042,3772.9,3772.8,2.67705682]
[1753836303820,0.042,3772.9,3772.8,3.86649148]
[1753836304107,0.042,3772.9,3772.8,1.34874017]
[1753836304269,0.9323,3773.8,3772.9,3.55]
[1753836304465,0.002,3774.2,3773.8,0.1328]
[1753836304773,5.0453,3774.1,3773.7,0.1328]
[1753836304974,0.9323,3774.0,3773.3,0.55]
[1753836305273,0.9323,3774.0,3773.3,4.36171279]
[1753836305593,0.9323,3773.9,3773.3,0.81171279]
[1753836305797,0.4654,3773.8,3773.3,0.81171279]
[1753836306110,4.113,3774.1,3773.8,0.1328]
[1753836306356,4.113,3774.1,3773.7,0.1328]
[1753836306523,4.113,3774.1,3774.0,0.1328]
[1753836307201,5.0453,3774.1,3774.0,0.1328]
[1753836307602,4.113,3774.1,3774.0,0.1328]
[1753836307770,0.002,3774.2,3774.0,0.1328]
[1753836308028,0.002,3774.2,3774.1,0.02649638]
[1753836308169,0.002,3774.2,3774.1,0.46079638]
[1753836308368,0.002,3774.6,3774.2,0.55]
[1753836308819,0.9323,3774.5,3774.1,0.7631]
[1753836308968,0.9323,3774.5,3774.4,0.1328]
[1753836309166,0.002,3774.6,3774.4,0.1328]
[1753836309167,0.002,3774.6,3774.5,2.64935753]
[1753836309409,0.002,3774.6,3774.5,5.26762118]
[1753836310470,0.002,3774.6,3774.5,1.29566365]
[1753836310671,0.002,3774.6,3774.4,0.1328]
[1753836310672,0.9343,3774.6,3774.4,0.1328]
[1753836310910,0.9323,3774.5,3774.4,0.1328]
[1753836317305,1.7515,3774.5,3774.4,0.1328]
[1753836317522,5.8615,3774.5,3774.4,0.1328]
[1753836319263,6.44825,3774.5,3773.4,3.0]
[1753836319423,0.03282545,3774.4,3774.1,0.1328]
[1753836319621,0.96512545,3774.4,3774.1,0.1328]
[1753836319927,0.9323,3774.3,3774.1,0.1328]
[1753836320153,1.34415,3774.3,3773.4,3.0]
[1753836320319,0.41185,3774.3,3773.9,0.1328]
[1753836320525,0.9323,3774.2,3773.9,0.1328]
[1753836320844,0.9323,3774.1,3773.9,0.1328]
[1753836321043,5.0423,3774.0,3773.9,0.1328]
[1753836322049,4.5769,3774.0,3773.9,0.1328]
[1753836322257,5.0423,3774.0,3773.9,0.1328]
[1753836323361,4.11,3774.0,3773.9,1.3777]
[1753836323566,4.11,3774.0,3773.9,1.5493]
[1753836323768,4.11,3774.0,3773.9,1.115]
[1753836323954,4.11,3774.0,3773.9,0.3044]
[1753836324137,4.11,3774.0,3773.9,0.1328]
[1753836324345,4.5754,3774.3,3773.9,0.1328]
[1753836324574,0.9323,3774.2,3773.9,0.1328]
[1753836324744,0.75,3774.1,3773.5,7.28]
[1753836324934,0.75,3774.1,3774.0,0.1328]
[1753836325643,1.6823,3774.1,3774.0,0.1328]
[1753836325982,0.9323,3774.1,3774.0,0.1328]
[1753836326184,0.4654,3774.1,3774.0,0.1328]
[1753836326334,4.11,3774.3,3774.0,0.1328]
[1753836326761,0.4654,3774.2,3774.0,0.1328]
[1753836327210,0.4654,3774.1,3774.0,0.1328]
[1753836327392,4.11,3774.3,3773.5,7.28]
[1753836327560,4.11,3774.3,3774.0,0.1328]
[1753836327760,4.11,3774.3,3774.2,0.1328]
[1753836329304,5.0423,3774.3,3774.2,0.1328]
[1753836329489,5.8482,3774.3,3774.2,0.1328]
[1753836330608,6.43322,3774.3,3773.3,0.8275]
[1753836330809,0.1328,3773.8,3772.8,0.1328]
[1753836331106,0.8025,3773.2,3772.7,0.1328]
[1753836331418,0.765,3772.9,3772.5,0.1328]
[1753836331568,4.109,3772.8,3772.3,0.1338]
[1753836331768,0.9547,3772.7,3772.3,0.1338]
[1753836332266,4.109,3772.8,3772.3,0.1338]
[1753836332465,0.9547,3772.6,3772.3,0.1338]
[1753836332879,0.9547,3772.5,3772.3,0.1338]
[1753836333195,4.109,3772.4,3772.3,0.1338]
[1753836333419,4.5962,3772.4,3772.3,0.1338]
[1753836333720,0.4872,3772.8,3772.3,0.1338]
[1753836333905,4.109,3772.7,3772.3,0.1338]
[1753836334230,0.9547,3772.6,3772.5,0.1328]
[1753836334408,0.9547,3772.6,3772.3,0.1338]
[1753836334724,0.98752545,3772.5,3772.3,0.1338]
[1753836335216,0.7937,3772.4,3772.3,0.001]
[1753836335419,1.2809,3772.4,3772.3,0.001]
[1753836335726,1.7484,3772.4,3772.3,0.001]
[1753836340630,2.33342,3772.4,3772.3,0.001]
[1753836340786,2.46622,3772.4,3772.3,0.001]
[1753836340993,1.8812,3772.4,3772.3,0.001]
[1753836341287,5.9912,3772.4,3772.3,0.001]
[1753836347746,4.9037,3772.4,3772.3,0.001]
[1753836347947,5.3909,3772.4,3772.3,0.001]
[1753836348337,5.8584,3772.4,3772.3,0.001]
[1753836350652,6.45752,3772.4,3772.3,0.001]
[1753836350836,7.00752,3772.4,3772.3,0.001]
[1753836353059,8.60352,3772.4,3772.3,0.001]
[1753836353260,7.00752,3772.4,3772.3,0.001]
[1753836353469,12.65835236,3772.4,3772.3,0.001]
[1753836353676,43.27649257,3772.4,3772.3,0.001]
[1753836353826,42.95879001,3772.4,3772.3,0.001]
[1753836354656,3.20111346,3772.0,3771.9,0.001]
[1753836354828,41.55721891,3772.0,3771.9,0.001]
[1753836355029,42.47909346,3772.0,3771.9,0.001]
[1753836356674,45.27309346,3772.0,3771.9,0.001]
[1753836357327,145.27309346,3772.0,3771.9,0.001]
[1753836357530,115.27309346,3772.0,3771.9,0.001]
[1753836357759,145.27309346,3772.0,3771.9,0.001]
[1753836358356,4.3321,3771.2,3771.1,0.04]
[1753836358647,14.84792545,3771.2,3771.1,0.04]
[1753836358853,48.42147585,3771.2,3771.1,0.04]
[1753836359186,23.47365936,3771.2,3771.1,0.04]
[1753836359469,53.47365936,3771.2,3771.1,0.04]
[1753836359675,53.87313936,3771.2,3771.1,0.04]
[1753836360237,51.22146351,3771.2,3771.1,0.04]
[1753836360439,46.36866193,3771.2,3771.1,0.04]
[1753836360676,42.25866193,3771.2,3771.1,0.04]
[1753836360878,15.81866193,3771.2,3771.1,0.04]
[1753836361078,14.46448193,3771.2,3771.1,0.04]
[1753836361279,14.95168193,3771.2,3771.1,0.04]
[1753836361593,48.62085778,3771.2,3771.1,0.04]
[1753836361771,45.96918193,3771.2,3771.1,0.04]
[1753836362657,48.62085778,3771.2,3771.1,0.04]
[1753836363573,48.75365778,3771.2,3771.1,0.04]
[1753836367686,46.10198193,3771.2,3771.1,0.04]
[1753836367905,48.75365778,3771.2,3771.1,0.04]
[1753836368082,50.34965778,3771.2,3771.1,0.04]
[1753836369585,50.65009543,3771.2,3771.1,0.04]
[1753836369771,53.44409543,3771.2,3771.1,0.04]
[1753836371973,53.14365778,3771.2,3771.1,0.04]
[1753836372494,60.16365778,3771.2,3771.1,0.04]
[1753836374161,30.16365778,3771.2,3771.1,0.04]
[1753836374380,60.16365778,3771.2,3771.1,0.04]
[1753836376517,30.16365778,3771.2,3771.1,0.04]
[1753836376792,60.16365778,3771.2,3771.1,0.04]
[1753836379358,60.16365778,3771.2,3771.1,0.041]
[1753836380795,63.36132877,3771.2,3771.1,0.041]
[1753836382199,41.35675714,3770.8,3770.7,0.001]
[1753836382399,48.79722813,3770.8,3770.7,0.001]
[1753836382801,49.28542813,3770.8,3770.7,0.001]
[1753836383305,46.63347099,3770.8,3770.7,0.001]
[1753836383499,46.14527099,3770.8,3770.7,0.001]
[1753836383880,49.28542813,3770.8,3770.7,0.001]
[1753836384080,49.72552813,3770.8,3770.7,0.001]
[1753836385192,41.40956814,3770.5,3770.4,0.001]
[1753836385400,49.15047678,3770.5,3770.4,0.001]
[1753836385723,50.07877678,3770.5,3770.4,0.001]
[1753836388029,150.07877678,3770.5,3770.4,0.001]
[1753836389491,149.77833913,3770.5,3770.4,0.001]
[1753836392189,149.77833913,3770.5,3770.1,0.04]
[1753836392190,37.59237918,3770.2,3770.1,0.04]
[1753836392388,44.83417918,3770.2,3770.1,0.04]
[1753836392616,45.32887918,3770.2,3770.1,0.04]
[1753836392788,46.58937918,3770.2,3770.1,0.04]
[1753836394089,49.31575017,3770.2,3770.1,0.04]
[1753836394493,35.2788,3770.2,3770.1,0.04]
[1753836394689,0.1328,3770.2,3770.1,1.5788]
[1753836394940,4.2418,3770.2,3770.1,1.5788]
[1753836396003,0.1328,3770.2,3770.1,1.5788]
[1753836396202,4.2418,3770.2,3770.1,1.5788]
[1753836397093,7.31835918,3770.2,3770.1,0.04]
[1753836397332,2.65256429,3770.0,3769.1,0.4743]
[1753836397493,30.0,3769.4,3769.1,0.4743]
[1753836397839,33.0,3769.2,3769.1,0.04]
[1753836398231,36.74767099,3769.2,3769.1,0.04]
[1753836398429,33.55,3769.2,3769.1,0.04]
[1753836398621,33.97418,3769.2,3769.1,0.04]
[1753836398820,44.37773387,3769.2,3769.1,0.04]
[1753836399038,46.65163933,3769.2,3769.1,0.04]
[1753836399340,6.20378695,3768.2,3767.7,0.001]
[1753836399496,41.43109099,3768.2,3767.7,0.001]
[1753836399697,38.23342,3768.2,3767.7,0.001]
[1753836399953,38.23342,3768.2,3767.7,0.4353]
[1753836400447,38.23342,3768.2,3767.7,0.001]
[1753836401013,43.92673943,3768.2,3767.7,0.001]
[1753836401215,43.5856914,3768.2,3767.7,0.001]
[1753836401540,143.1143914,3768.2,3767.7,0.001]
[1753836401766,143.5856914,3768.2,3767.7,0.001]
[1753836401971,113.5856914,3768.2,3767.7,0.001]
[1753836402325,143.5856914,3768.2,3767.7,0.001]
[1753836402975,141.9896914,3768.2,3767.7,0.001]
[1753836405530,142.33073943,3768.2,3767.7,0.001]
[1753836406070,147.19792463,3768.2,3767.7,0.001]
[1753836406251,146.8568766,3768.2,3767.7,0.001]
[1753836407346,146.9896766,3768.2,3767.7,0.001]
[1753836408654,139.26088965,3768.2,3767.7,0.001]
[1753836408972,133.84370445,3768.2,3767.8,0.4343]
[1753836409179,134.37928445,3768.2,3767.9,0.3383]
[1753836409391,141.5490714,3768.2,3767.7,0.001]
[1753836410052,138.42398445,3768.2,3767.7,0.001]
[1753836410393,137.92928445,3768.2,3767.7,0.001]
[1753836410591,133.81928445,3768.2,3767.7,0.001]
[1753836410793,137.92928445,3768.2,3767.7,0.001]
[1753836411294,140.5830714,3768.2,3767.7,0.001]
[1753836411708,137.92928445,3768.2,3767.7,0.001]
[1753836414314,138.42398445,3768.2,3767.7,0.001]
[1753836414664,141.21798445,3768.2,3767.7,0.001]
[1753836415200,141.48368445,3768.2,3767.7,0.001]
[1753836415521,140.72228445,3768.2,3767.7,0.001]
[1753836420177,136.61328445,3768.2,3767.7,0.001]
[1753836420506,0.26928445,3768.2,3768.1,1.5768]
[1753836420704,4.37828445,3768.2,3768.1,1.5768]
[1753836420868,7.37828445,3768.2,3768.1,1.5768]
[1753836421805,41.3273129,3768.2,3768.1,0.041]
[1753836421978,42.48491836,3768.2,3768.1,0.041]
[1753836422572,41.66836093,3768.2,3768.1,0.041]
[1753836422836,34.02753248,3768.2,3768.1,0.041]
[1753836423116,3.13648445,3768.2,3768.1,1.5896]
[1753836423401,7.24548445,3768.2,3768.1,1.5896]
[1753836423764,3.0,3768.2,3768.1,1.5896]
[1753836424106,4.109,3768.2,3768.1,0.97256]
[1753836424607,4.109,3768.2,3768.1,1.5896]
[1753836424964,37.45004803,3768.2,3768.1,0.817]
[1753836425371,37.45004803,3768.2,3768.1,0.041]
[1753836426005,37.109,3768.2,3768.1,0.041]
[1753836426813,38.6049,3768.2,3768.1,0.041]
[1753836428010,37.659,3768.2,3768.1,0.041]
[1753836428216,38.1387,3768.2,3768.1,0.041]
[1753836428384,40.31278695,3768.2,3768.1,0.041]
[1753836428590,41.25868695,3768.2,3768.1,0.041]
[1753836429997,38.6049,3768.2,3768.1,0.041]
[1753836430207,38.1387,3768.2,3768.1,0.041]
[1753836430583,37.659,3768.2,3768.1,0.041]
[1753836430777,40.31278695,3768.2,3768.1,0.041]
[1753836431120,6.381,3768.4,3768.1,1.5984]
[1753836431286,33.0,3768.2,3768.1,0.8258]
[1753836431894,33.1328,3768.2,3768.1,0.8258]
[1753836432508,7.2408,3768.2,3768.1,0.8258]
[1753836433397,37.2408,3768.2,3768.1,0.8258]
[1753836434714,37.7908,3768.2,3768.1,0.041]
[1753836434917,38.2705,3768.2,3768.1,0.041]
[1753836435221,38.7367,3768.2,3768.1,0.041]
[1753836435687,41.5307,3768.2,3768.1,0.041]
[1753836436433,37.4227,3768.2,3768.1,0.041]
[1753836436581,41.5307,3768.2,3768.1,0.041]
[1753836437393,37.4227,3768.2,3768.1,0.041]
[1753836437683,41.5307,3768.2,3768.1,0.041]
[1753836439304,40.5848,3768.2,3768.1,0.041]
[1753836439887,41.0645,3768.2,3768.1,0.041]
[1753836440120,41.5307,3768.2,3768.1,0.041]
[1753836440824,11.5307,3768.2,3768.1,0.041]
[1753836440990,41.5307,3768.2,3768.1,0.041]
[1753836442921,46.57028695,3768.2,3768.1,0.041]
[1753836443119,47.17703498,3768.2,3768.1,0.041]
[1753836444922,46.83598695,3768.2,3768.1,0.041]
[1753836445310,44.1822,3768.2,3767.7,0.001]
[1753836445511,33.6828,3767.8,3767.7,0.001]
[1753836445716,37.7908,3767.8,3767.7,0.001]
[1753836447315,38.2705,3767.8,3767.7,0.001]
[1753836447520,46.04646868,3767.8,3767.7,0.001]
[1753836447825,47.16791671,3767.8,3767.7,0.001]
[1753836448330,46.82686868,3767.8,3767.7,0.001]
[1753836449592,41.50726868,3767.8,3767.7,0.001]
[1753836449798,142.1798,3767.8,3767.7,0.001]
[1753836450114,138.0728,3767.8,3767.7,0.001]
[1753836450314,37.7908,3767.8,3767.7,0.001]
[1753836450989,7.7908,3767.8,3767.7,0.001]
[1753836451203,37.7908,3767.8,3767.7,0.001]
[1753836453015,7.2408,3767.8,3767.7,0.001]
[1753836453216,34.2408,3767.8,3767.7,0.4353]
[1753836453600,37.2408,3767.8,3767.7,0.4353]
[1753836454200,43.6228,3767.8,3767.7,0.4353]
[1753836454601,39.5148,3767.8,3767.7,0.4353]
[1753836454932,43.6218,3767.8,3767.7,0.4353]
[1753836455108,6.5148,3767.8,3767.7,1.2211]
[1753836455308,6.5148,3767.8,3767.7,1.5594]
[1753836455309,10.6218,3767.8,3767.7,1.5594]
[1753836455523,13.6218,3767.8,3767.7,1.71544]
[1753836456807,13.6218,3767.8,3767.7,1.5594]
[1753836457405,13.6218,3767.8,3767.7,0.7868]
[1753836457731,13.6218,3767.8,3767.7,1.5594]
[1753836458561,10.489,3767.8,3767.7,1.5594]
[1753836461358,13.489,3767.8,3767.7,0.7868]
[1753836461655,14.39,3767.8,3767.7,0.001]
[1753836463355,44.39,3767.8,3767.7,0.001]
[1753836464128,44.39,3767.8,3767.7,0.001]
[1753836466238,14.39,3767.8,3767.7,0.001]
[1753836466642,44.39,3767.8,3767.7,0.001]
[1753836472783,40.283,3767.8,3767.7,0.001]
[1753836472963,44.389,3767.8,3767.7,0.001]
[1753836478437,144.389,3767.8,3767.7,0.001]
[1753836479736,114.389,3767.8,3767.7,0.001]
[1753836479936,144.389,3767.8,3767.7,0.001]
[1753836480376,143.488,3767.8,3767.7,0.001]
[1753836480680,39.382,3767.8,3767.7,0.001]
[1753836480882,9.382,3767.8,3767.7,1.5549]
[1753836481043,13.487,3767.8,3767.7,1.5549]
[1753836482165,13.487,3767.8,3767.7,0.7823]
[1753836482681,9.382,3767.8,3767.7,0.7823]
[1753836482839,10.487,3767.8,3767.7,1.5549]
[1753836483456,6.382,3767.8,3767.7,1.5549]